fUSD/lending_fUSD_20250112
["ID","MTS","AMOUNT","RATE_DAILY","PERIOD"]
[348690233,1736718641111,-500.0,0.00010547,2]
[348690234,1736718641120,-500.0,0.00010547,2]
[348690235,1736718641133,-500.0,0.00010547,2]
[348690236,1736718641142,-500.0,0.00010547,2]
[348690237,1736718641151,-520.25,0.00010547,2]
[348690238,1736718641160,-500.0,0.00010547,2]
[348690239,1736718641169,-500.0,0.00010547,2]
[348690240,1736718641178,-500.0,0.00010547,2]
[348690241,1736718641186,-555.37,0.00010547,2]
[348690242,1736718641196,-500.0,0.00010547,2]
[348690243,1736718641205,-513.36,0.00010547,2]
[348690244,1736718641217,-583.47,0.00010547,2]
[348690245,1736718641226,-500.0,0.00010547,2]
[348690246,1736718641235,-500.0,0.00010547,2]
[348690247,1736718641244,-500.0,0.00010547,2]
[348690248,1736718641253,-500.0,0.00010547,2]
[348690249,1736718641262,-500.0,0.00010547,2]
[348690250,1736718641272,-500.0,0.00010547,2]
[348690251,1736718641281,-500.0,0.00010547,2]
[348690252,1736718641290,-881.9,0.00010547,2]
[348690253,1736718641299,-500.0,0.00010547,2]
[348690254,1736718641308,-500.0,0.00010547,2]
[348690255,1736718641317,-500.0,0.00010547,2]
[348690256,1736718641327,-500.0,0.00010547,2]
[348690257,1736718641336,-515.33,0.00010547,2]
[348690258,1736718641345,-500.0,0.00010547,2]
[348690259,1736718641354,-500.0,0.00010547,2]
[348690260,1736718641363,-518.34,0.00010547,2]
[348690261,1736718641372,-500.0,0.00010547,2]
[348690262,1736718641381,-502.23,0.00010547,2]
[348690263,1736718641390,-500.0,0.00010547,2]
[348690264,1736718641399,-1316.21,0.00010547,2]
[348690265,1736718641408,-500.0,0.00010547,2]
[348690266,1736718641417,-500.0,0.00010547,2]
[348690267,1736718641426,-593.48,0.00010547,2]
[348690268,1736718641435,-500.0,0.00010547,2]
[348690269,1736718641444,-500.0,0.00010547,2]
[348690270,1736718641453,-539.97,0.00010547,2]
[348690271,1736718641467,-1075.98,0.00010547,2]
[348690272,1736718641476,-500.0,0.00010547,2]
[348690273,1736718641486,-3009.24,0.00010547,2]
[348690274,1736718641495,-500.0,0.00010547,2]
[348690275,1736718641505,-613.21,0.00010547,2]
[348690276,1736718641514,-500.0,0.00010547,2]
[348690277,1736718641523,-500.0,0.00010547,2]
[348690278,1736718641533,-500.0,0.00010547,2]
[348690279,1736718641542,-500.0,0.00010547,2]
[348690280,1736718641551,-506.99,0.00010547,2]
[348690281,1736718641561,-2155.98,0.00010547,2]
[348690282,1736718641570,-500.0,0.00010547,2]
[348690283,1736718641579,-500.0,0.00010547,2]
[348690284,1736718641588,-500.0,0.00010547,2]
[348690285,1736718641597,-500.0,0.00010547,2]
[348690286,1736718641606,-615.0,0.00010547,2]
[348690287,1736718641616,-500.0,0.00010547,2]
[348690288,1736718641625,-682.67,0.00010547,2]
[348690289,1736718641634,-622.97,0.00010547,2]
[348690290,1736718641643,-1534.43,0.00010547,2]
[348690291,1736718641652,-500.0,0.00010547,2]
[348690292,1736718641661,-552.72,0.00010547,2]
[348690293,1736718641670,-500.0,0.00010547,2]
[348690294,1736718641679,-500.0,0.00010547,2]
[348690295,1736718641688,-653.94,0.00010547,2]
[348690296,1736718641697,-500.0,0.00010547,2]
[348690297,1736718641706,-500.0,0.00010547,2]
[348690298,1736718641719,-500.0,0.00010547,2]
[348690299,1736718641728,-981.19,0.00010547,2]
[348690300,1736718641737,-594.78,0.00010547,2]
[348690301,1736718641747,-1830.09,0.00010547,2]
[348690302,1736718641756,-517.41,0.00010547,2]
[348690303,1736718641954,-500.0,0.00010547,2]
[348690304,1736718641963,-1252.0,0.00010547,2]
[348690305,1736718641973,-500.0,0.00010547,2]
[348690306,1736718641982,-2295.68,0.00010547,2]
[348690307,1736718641991,-500.0,0.00010547,2]
[348690308,1736718642001,-517.75,0.00010547,2]
[348690309,1736718642010,-530.16,0.00010547,2]
[348690310,1736718642019,-641.82,0.00010547,2]
[348690311,1736718642028,-547.89,0.00010547,2]
[348690312,1736718642037,-1374.95,0.00010547,2]
[348690313,1736718642046,-734.01,0.00010547,2]
[348690314,1736718642055,-500.0,0.00010547,2]
[348690315,1736718642064,-556.01,0.00010547,2]
[348690316,1736718642074,-1414.63,0.00010547,2]
[348690317,1736718642083,-500.0,0.00010547,2]
[348690318,1736718642092,-951.96,0.00010547,2]
[348690319,1736718642101,-530.5,0.00010547,2]
[348690320,1736718642111,-500.0,0.00010547,2]
[348690321,1736718642120,-500.0,0.00010547,2]
[348690322,1736718642133,-605.92,0.00010547,2]
[348690323,1736718642143,-500.0,0.00010547,2]
[348690324,1736718642152,-800.04,0.00010547,2]
[348690325,1736718642162,-563.5,0.00010547,2]
[348690326,1736718642171,-650.95,0.00010547,2]
[348690327,1736718642182,-1624.05,0.00010547,2]
[348690328,1736718642191,-476.22249,0.00010547,2]
[348690329,1736718642200,-500.0,0.00010547,2]
[348690330,1736718642212,-500.0,0.00010547,2]
[348690331,1736718642221,-500.0,0.00010547,2]
[348690332,1736718642230,-500.0,0.00010547,2]
[348690333,1736718642239,-408.670288,0.00010547,2]
[348690334,1736718642248,-624.9,0.00010547,2]
[348690335,1736718642258,-655.65,0.00010547,2]
[348690336,1736718642267,-500.0,0.00010547,2]
[348690337,1736718642276,-500.0,0.00010547,2]
[348690338,1736718642286,-1923.5,0.00010547,2]
[348690339,1736718642295,-596.96,0.00010547,2]
[348690340,1736718642304,-500.0,0.00010547,2]
[348690341,1736718642313,-773.9,0.00010547,2]
[348690342,1736718642322,-500.0,0.00010547,2]
[348690343,1736718642331,-930.45,0.00010547,2]
[348690344,1736718642340,-150.0,0.00010602,2]
[348690345,1736718642350,-150.0,0.00010602,2]
[348690346,1736718642359,-150.0,0.00010602,2]
[348690347,1736718642368,-150.0,0.00010602,2]
[348690348,1736718642378,-979.82,0.00010602,2]
[348690349,1736718642387,-437.19,0.00010602,2]
[348690350,1736718642396,-437.19,0.00010602,2]
[348690351,1736718642405,-150.0,0.00010602,2]
[348690352,1736718642415,-150.0,0.00010602,2]
[348690353,1736718642424,-150.0,0.00010602,2]
[348690354,1736718642433,-777.24,0.00010619,2]
[348690355,1736718642442,-787.0,0.00010619,2]
[348690356,1736718642451,-787.62,0.00010619,2]
[348690357,1736718642460,-562.43,0.00010619,2]
[348690358,1736718642471,-860.5,0.00010619,2]
[348690359,1736718642480,-734.53,0.00010619,2]
[348690360,1736718642489,-733.56,0.00010619,2]
[348690361,1736718642498,-733.56,0.00010619,2]
[348690362,1736718642507,-1542.48,0.00010619,2]
[348690363,1736718642516,-1045.45,0.00010619,2]
[348690364,1736718642525,-1076.8,0.00010619,2]
[348690365,1736718642534,-1011.13,0.00010619,2]
[348690366,1736718642543,-1475.42,0.00010619,2]
[348690367,1736718642553,-1364.6,0.0001062,2]
[348690368,1736718642562,-803.99,0.0001062,2]
[348690369,1736718642571,-1091.09,0.0001062,2]
[348690370,1736718642581,-911.66,0.0001062,2]
[348690371,1736718642590,-561.62,0.0001062,2]
[348690372,1736718642599,-500.0,0.0001062,2]
[348690373,1736718642608,-1216.09,0.0001062,2]
[348690374,1736718642617,-704.28,0.0001062,2]
[348690375,1736718642626,-500.0,0.0001062,2]
[348690376,1736718642635,-500.0,0.0001062,2]
[348690377,1736718642644,-540.52,0.0001062,2]
[348690378,1736718642654,-150.0,0.00010627,2]
[348690379,1736718642663,-150.0,0.00010627,2]
[348690380,1736718642672,-391.35988887,0.00010659,2]
[348690381,1736718642682,-156.63,0.00010662,2]
[348690382,1736718642691,-200.77379883,0.00010667,2]
[348690383,1736718642700,-209.65696484,0.000107,2]
[348690384,1736718642709,-500.0,0.00010725,2]
[348690385,1736718642720,-500.0,0.00010792,2]
[348690386,1736718642729,-500.0,0.00010792,2]
[348690387,1736718642738,-2050.95,0.00010792,2]
[348690388,1736718642747,-641.29,0.00010792,2]
[348690389,1736718642756,-500.0,0.00010792,2]
[348690390,1736718642765,-800.14,0.00010792,2]
[348690391,1736718642775,-816.64,0.00010792,2]
[348690392,1736718642784,-1160.04,0.00010792,2]
[348690393,1736718642794,-817.54,0.00010792,2]
[348690394,1736718642803,-1385.85,0.00010792,2]
[348690395,1736718642812,-960.89,0.00010792,2]
[348690396,1736718642821,-2295.2,0.00010792,2]
[348690397,1736718642830,-500.0,0.00010792,2]
[348690398,1736718642839,-960.5,0.00010792,2]
[348690399,1736718642848,-1918.66,0.00010792,2]
[348690400,1736718642857,-976.04,0.00010792,2]
[348690401,1736718642866,-923.64,0.00010792,2]
[348690402,1736718642875,-582.83,0.00010792,2]
[348690403,1736718642885,-967.5,0.00010792,2]
[348690404,1736718642894,-1248.4,0.00010792,2]
[348690405,1736718642903,-1117.98,0.00010792,2]
[348690406,1736718642912,-2432.43,0.00010792,2]
[348690407,1736718642921,-2311.91,0.00010793,2]
[348690408,1736718642930,-1591.89,0.00010793,2]
[348690409,1736718642939,-883.92,0.00010793,2]
[348690410,1736718642948,-904.75,0.00010793,2]
[348690412,1736718642957,-620.86,0.00010793,2]
[348690414,1736718642967,-685.38,0.00010793,2]
[348690415,1736718642977,-1044.84,0.00010793,2]
[348690416,1736718642986,-1544.43,0.00010793,2]
[348690417,1736718642996,-982.77188825,0.000108,2]
[348690418,1736718643005,-500.0,0.00010821,2]
[348690419,1736718643015,-656.56,0.00010821,2]
[348690420,1736718643024,-500.0,0.00010821,2]
[348690421,1736718643033,-500.0,0.00010821,2]
[348690422,1736718643042,-500.0,0.00010821,2]
[348690423,1736718643051,-580.03,0.00010821,2]
[348690424,1736718643061,-500.0,0.00010821,2]
[348690425,1736718643070,-500.0,0.00010821,2]
[348690426,1736718643079,-500.0,0.00010821,2]
[348690427,1736718643089,-500.0,0.00010821,2]
[348690428,1736718643098,-500.0,0.00010821,2]
[348690429,1736718643107,-558.58869963,0.00010821,2]
[348690430,1736718643116,-500.0,0.00010821,2]
[348690431,1736718643128,-500.0,0.00010821,2]
[348690432,1736718643137,-168.43736989,0.00010821,2]
[348690433,1736718643147,-500.0,0.00010821,2]
[348690434,1736718643157,-500.0,0.00010821,2]
[348690435,1736718643167,-500.0,0.00010821,2]
[348690436,1736718643176,-500.0,0.00010821,2]
[348690437,1736718643185,-500.0,0.00010821,2]
[348690438,1736718643195,-500.0,0.00010821,2]
[348690439,1736718643205,-500.0,0.00010821,2]
[348690440,1736718643216,-500.0,0.00010821,2]
[348690441,1736718643226,-500.0,0.00010821,2]
[348690442,1736718643235,-512.18,0.00010821,2]
[348690443,1736718643244,-500.0,0.00010821,2]
[348690444,1736718643255,-552.26890889,0.00010821,2]
[348690445,1736718643265,-502.14,0.00010821,2]
[348690446,1736718643274,-508.12,0.00010821,2]
[348690447,1736718643284,-500.0,0.00010821,2]
[348690448,1736718643294,-500.0,0.00010821,2]
[348690449,1736718643304,-554.36,0.00010821,2]
[348690450,1736718643314,-500.0,0.00010821,2]
[348690451,1736718643322,-500.0,0.00010821,2]
[348690452,1736718643332,-569.48,0.00010821,2]
[348690453,1736718643342,-500.0,0.00010821,2]
[348690454,1736718643351,-500.0,0.00010821,2]
[348690455,1736718643361,-500.0,0.00010821,2]
[348690456,1736718643372,-500.0,0.00010821,2]
[348690457,1736718643382,-500.0,0.00010821,2]
[348690458,1736718643391,-500.0,0.00010821,2]
[348690459,1736718643401,-500.0,0.00010821,2]
[348690460,1736718643410,-537.32981676,0.00010821,2]
[348690461,1736718643419,-520.25,0.00010821,2]
[348690462,1736718643428,-500.0,0.00010821,2]
[348690463,1736718643437,-500.0,0.00010821,2]
[348690464,1736718643447,-500.0,0.00010821,2]
[348690465,1736718643457,-555.37,0.00010821,2]
[348690466,1736718643467,-500.0,0.00010821,2]
[348690467,1736718643476,-513.36,0.00010821,2]
[348690468,1736718643485,-583.47,0.00010821,2]
[348690469,1736718643497,-500.0,0.00010821,2]
[348690470,1736718643506,-500.0,0.00010821,2]
[348690471,1736718643517,-500.0,0.00010821,2]
[348690472,1736718643528,-500.0,0.00010821,2]
[348690473,1736718643537,-500.0,0.00010821,2]
[348690474,1736718643547,-500.0,0.00010821,2]
[348690475,1736718643557,-500.0,0.00010821,2]
[348690476,1736718643566,-881.9,0.00010821,2]
[348690477,1736718643576,-500.0,0.00010821,2]
[348690478,1736718643586,-500.0,0.00010821,2]
[348690479,1736718643595,-500.0,0.00010821,2]
[348690480,1736718643604,-500.0,0.00010821,2]
[348690481,1736718643613,-515.33,0.00010821,2]
[348690482,1736718643623,-500.0,0.00010821,2]
[348690483,1736718643632,-500.0,0.00010821,2]
[348690484,1736718643641,-518.34,0.00010821,2]
[348690485,1736718643650,-500.0,0.00010821,2]
[348690486,1736718643659,-502.23,0.00010821,2]
[348690487,1736718643669,-500.0,0.00010821,2]
[348690488,1736718643681,-1316.21,0.00010821,2]
[348690489,1736718643691,-397.38047651,0.00010821,2]
[348690490,1736718643700,-500.0,0.00010821,2]
[348690491,1736718643709,-593.48,0.00010821,2]
[348690492,1736718643719,-500.0,0.00010821,2]
[348690493,1736718643729,-500.0,0.00010821,2]
[348690494,1736718643739,-539.97,0.00010821,2]
[348690495,1736718643748,-1075.98,0.00010821,2]
[348690496,1736718643757,-473.18580128,0.00010821,2]
[348690497,1736718643766,-3009.24,0.00010821,2]
[348690498,1736718643775,-500.0,0.00010821,2]
[348690499,1736718643785,-613.21,0.00010821,2]
[348690500,1736718643795,-500.0,0.00010821,2]
[348690501,1736718643804,-500.0,0.00010821,2]
[348690502,1736718643814,-500.0,0.00010821,2]
[348690503,1736718643823,-500.0,0.00010821,2]
[348690504,1736718643832,-506.99,0.00010821,2]
[348690505,1736718643841,-2155.98,0.00010821,2]
[348690506,1736718643851,-500.0,0.00010821,2]
[348690507,1736718643860,-500.0,0.00010821,2]
[348690508,1736718643870,-500.0,0.00010821,2]
[348690509,1736718643879,-500.0,0.00010821,2]
[348690510,1736718643888,-615.0,0.00010821,2]
[348690511,1736718643898,-500.0,0.00010821,2]
[348690512,1736718643907,-622.97,0.00010821,2]
[348690513,1736718643917,-682.67,0.00010821,2]
[348690514,1736718643926,-1534.43,0.00010821,2]
[348690515,1736718643935,-500.0,0.00010821,2]
[348690516,1736718643944,-552.72,0.00010821,2]
[348690517,1736718643954,-622.9,0.00010821,2]
[348690518,1736718643963,-500.0,0.00010821,2]
[348690519,1736718643973,-653.94,0.00010821,2]
[348690520,1736718643982,-500.0,0.00010821,2]
[348690521,1736718643991,-500.0,0.00010821,2]
[348690522,1736718644001,-500.0,0.00010821,2]
[348690523,1736718644010,-981.19,0.00010821,2]
[348690524,1736718644019,-594.78,0.00010821,2]
[348690525,1736718644028,-1830.09,0.00010821,2]
[348690526,1736718644037,-517.41,0.00010821,2]
[348690527,1736718644047,-417.67947893,0.00010821,2]
[348690528,1736718644056,-1252.0,0.00010821,2]
[348690529,1736718644066,-500.0,0.00010821,2]
[348690530,1736718644075,-2295.68,0.00010821,2]
[348690531,1736718644084,-500.0,0.00010821,2]
[348690532,1736718644094,-517.75,0.00010821,2]
[348690533,1736718644103,-530.16,0.00010821,2]
[348690534,1736718644112,-641.82,0.00010821,2]
[348690535,1736718644122,-547.89,0.00010821,2]
[348690536,1736718644135,-1374.95,0.00010821,2]
[348690537,1736718644145,-734.01,0.00010821,2]
[348690538,1736718644154,-500.0,0.00010821,2]
[348690539,1736718644164,-556.01,0.00010821,2]
[348690540,1736718644174,-1414.63,0.00010821,2]
[348690541,1736718644184,-500.0,0.00010821,2]
[348690542,1736718644193,-951.96,0.00010821,2]
[348690543,1736718644204,-530.5,0.00010821,2]
[348690544,1736718644213,-500.0,0.00010821,2]
[348690545,1736718644222,-500.0,0.00010821,2]
[348690546,1736718644231,-605.92,0.00010821,2]
[348690547,1736718644241,-500.0,0.00010821,2]
[348690548,1736718644308,-800.04,0.00010821,2]
[348690549,1736718644317,-563.5,0.00010821,2]
[348690550,1736718644327,-650.95,0.00010821,2]
[348690551,1736718644337,-1624.05,0.00010821,2]
[348690552,1736718644347,-476.22249,0.00010821,2]
[348690553,1736718644357,-500.0,0.00010821,2]
[348690554,1736718644366,-500.0,0.00010821,2]
[348690555,1736718644376,-500.0,0.00010821,2]
[348690556,1736718644386,-500.0,0.00010821,2]
[348690557,1736718644395,-408.670288,0.00010821,2]
[348690558,1736718644405,-624.9,0.00010821,2]
[348690559,1736718644415,-655.65,0.00010821,2]
[348690560,1736718644425,-500.0,0.00010821,2]
[348690561,1736718644434,-500.0,0.00010821,2]
[348690562,1736718644443,-1923.5,0.00010821,2]
[348690563,1736718644453,-596.96,0.00010821,2]
[348690564,1736718644463,-500.0,0.00010821,2]
[348690565,1736718644472,-773.9,0.00010821,2]
[348690567,1736718644482,-500.0,0.00010821,2]
[348690568,1736718644492,-930.45,0.00010821,2]
[348690569,1736718644502,-153.507976,0.00010842,4]
[348690570,1736718644511,-777.24,0.00010893,2]
[348690571,1736718644521,-787.0,0.00010893,2]
[348690572,1736718644531,-787.62,0.00010893,2]
[348690573,1736718644540,-562.43,0.00010893,2]
[348690574,1736718644549,-860.5,0.00010893,2]
[348690575,1736718644558,-734.53,0.00010893,2]
[348690576,1736718644567,-733.56,0.00010893,2]
[348690577,1736718644576,-733.56,0.00010893,2]
[348690578,1736718644586,-1045.45,0.00010893,2]
[348690579,1736718644595,-1076.8,0.00010893,2]
[348690580,1736718644604,-1011.13,0.00010893,2]
[348690581,1736718644614,-1475.42,0.00010893,2]
[348690582,1736718644623,-630.15,0.00010893,2]
[348690583,1736718644632,-1364.6,0.00010894,2]
[348690584,1736718644642,-803.99,0.00010894,2]
[348690585,1736718644651,-1091.09,0.00010894,2]
[348690586,1736718644660,-911.66,0.00010894,2]
[348690587,1736718644670,-561.62,0.00010894,2]
[348690588,1736718644679,-500.0,0.00010894,2]
[348690589,1736718644688,-1216.09,0.00010894,2]
[348690590,1736718644698,-704.28,0.00010894,2]
[348690591,1736718644707,-500.0,0.00010894,2]
[348690592,1736718644716,-500.0,0.00010894,2]
[348690593,1736718644726,-540.52,0.00010894,2]
[348690594,1736718644735,-1000.62,0.000109,2]
[348690595,1736718644745,-69231.99692347,0.000109,2]
[348690596,1736718644756,-900.0,0.000109,3]
[348690597,1736718644766,-291.64920048,0.000109,2]
[348690598,1736718644775,-299.04579897,0.000109,2]
[348690599,1736718644784,-173.89661422,0.000109,2]
[348690600,1736718644793,-6983.86174477,0.000109,2]
[348690601,1736718644803,-680.02438437,0.000109,2]
[348690602,1736718644813,-174.89954657,0.000109,2]
[348690603,1736718644822,-209.65696484,0.000109,2]
[348690604,1736718644831,-1122.0,0.00010926,2]
[348690605,1736718644841,-1268.0,0.00010951,2]
[348690606,1736718644850,-2016.0,0.00010951,2]
[348690607,1736718644859,-150.0,0.00010951,2]
[348690608,1736718644868,-635.0,0.00010951,2]
[348690609,1736718644878,-566.0,0.00010951,2]
[348690610,1736718644888,-1861.0,0.00010951,2]
[348690611,1736718644898,-817.0,0.00010951,2]
[348690612,1736718644908,-2944.0,0.00010951,2]
[348690613,1736718644918,-537.0,0.00010951,2]
[348690614,1736718644927,-2640.358,0.00010951,2]
[348690615,1736718644938,-150.0,0.00010951,2]
[348690616,1736718644947,-3896.0,0.00010951,2]
[348690617,1736718644956,-1174.0,0.00010951,2]
[348690618,1736718644967,-1104.0,0.00010951,2]
[348690619,1736718644976,-4000.0,0.00010959,2]
[348690620,1736718644985,-150.0,0.00010959,2]
[348690621,1736718644994,-153.507976,0.00010976,4]
[348690622,1736718645004,-153.507976,0.00010977,3]
[348690623,1736718645013,-666.0,0.00010999,2]
[348690624,1736718645023,-666.0,0.00010999,2]
[348690625,1736718645032,-181.39186706,0.00010999,2]
[348690626,1736718645041,-666.0,0.00010999,2]
[348690627,1736718645051,-666.0,0.00010999,2]
[348690628,1736718645062,-200.0,0.00011,2]
[348690629,1736718645071,-885941.60939357,0.00011,2]
[348690630,1736718645081,-550.0,0.00011,2]
[348690631,1736718645091,-153.507976,0.00011043,3]
[348690632,1736718645102,-200.77379883,0.0001105,2]
[348690633,1736718645111,-2248825.6005419,0.00011066,4]
[348690634,1736718645295,-500.0,9.836e-05,2]
[348690635,1736718645304,-547.39,0.00010273,2]
[348690636,1736718645313,-547.39,0.00010547,2]
[348690637,1736718645322,-547.39,0.00010821,2]
[348690638,1736718645332,-224.855,0.00011066,4]
[348690639,1736718645343,-1693.83655973,0.00011066,4]
[348690640,1736718645380,-3318.96264027,0.00011066,4]
[348690641,1736718645392,-18042.53485815,0.00011066,4]
[348690642,1736718645410,-419.79,0.00011066,4]
[348690643,1736718645430,-404.35089913,0.00011066,4]
[348690644,1736718645442,-284.55367884,0.00011066,4]
[348690645,1736718645459,-2004.69357214,0.00011066,4]
[348690646,1736718645470,-342.38583115,0.00011066,4]
[348690647,1736718645481,-342.89261828,0.00011066,4]
[348690648,1736718645746,-924.7454,0.00011066,4]
[348690649,1736718645757,-607.22410007,0.00011066,4]
[348690650,1736718645770,-31686.48570744,0.00011066,4]
[348690651,1736718645781,-1697516.75052382,0.00011066,4]
[348690652,1736718645791,-500.0,0.00011066,2]
[348690653,1736718645800,-500.0,0.00011066,2]
[348690654,1736718645809,-2050.95,0.00011066,2]
[348690655,1736718645819,-641.29,0.00011066,2]
[348690656,1736718645828,-500.0,0.00011066,2]
[348690657,1736718645837,-800.14,0.00011066,2]
[348690658,1736718645846,-816.64,0.00011066,2]
[348690659,1736718645857,-1160.04,0.00011066,2]
[348690660,1736718645866,-817.54,0.00011066,2]
[348690661,1736718645876,-1385.85,0.00011066,2]
[348690662,1736718645885,-960.89,0.00011066,2]
[348690663,1736718645896,-2295.2,0.00011066,2]
[348690664,1736718645905,-960.5,0.00011066,2]
[348690665,1736718645915,-1918.66,0.00011066,2]
[348690666,1736718645924,-976.04,0.00011066,2]
[348690667,1736718645933,-923.64,0.00011066,2]
[348690668,1736718645942,-582.83,0.00011066,2]
[348690669,1736718645952,-1542.48,0.00011066,2]
[348690670,1736718645962,-967.5,0.00011066,2]
[348690671,1736718645972,-1248.4,0.00011066,2]
[348690672,1736718645982,-1117.98,0.00011066,2]
[348690673,1736718645991,-2432.43,0.00011066,2]
[348690674,1736718646001,-2311.91,0.00011067,2]
[348690675,1736718646011,-1591.89,0.00011067,2]
[348690676,1736718646022,-883.92,0.00011067,2]
[348690677,1736718646031,-904.75,0.00011067,2]
[348690678,1736718646040,-685.38,0.00011067,2]
[348690679,1736718646049,-1044.84,0.00011067,2]
[348690680,1736718646058,-1544.43,0.00011067,2]
[348690681,1736718646067,-269.69,0.00011068,2]
[348690682,1736718646076,-153.507976,0.0001107,2]
[348690683,1736718646085,-999.0,0.00011079,2]
[348690684,1736718646094,-1000.0,0.0001108,2]
[348690685,1736718646103,-1000.0,0.0001108,2]
[348690686,1736718646112,-1000.0,0.0001108,2]
[348690687,1736718646121,-1000.0,0.0001108,2]
[348690688,1736718646134,-1000.0,0.0001108,2]
[348690689,1736718646143,-1000.0,0.0001108,2]
[348690690,1736718646152,-1000.0,0.0001108,2]
[348690691,1736718646160,-1000.0,0.0001108,2]
[348690692,1736718646170,-1000.0,0.0001108,2]
[348690693,1736718646179,-1000.0,0.0001108,2]
[348690694,1736718646188,-666.0,0.00011094,2]
[348690695,1736718646197,-666.0,0.00011094,2]
[348690696,1736718646207,-500.0,0.00011095,2]
[348690697,1736718646215,-656.56,0.00011095,2]
[348690698,1736718646225,-500.0,0.00011095,2]
[348690699,1736718646234,-500.0,0.00011095,2]
[348690700,1736718646243,-580.03,0.00011095,2]
[348690701,1736718646252,-500.0,0.00011095,2]
[348690702,1736718646260,-500.0,0.00011095,2]
[348690703,1736718646269,-500.0,0.00011095,2]
[348690704,1736718646279,-500.0,0.00011095,2]
[348690705,1736718646287,-500.0,0.00011095,2]
[348690706,1736718646296,-500.0,0.00011095,2]
[348690707,1736718646305,-500.0,0.00011095,2]
[348690708,1736718646315,-500.0,0.00011095,2]
[348690709,1736718646324,-500.0,0.00011095,2]
[348690710,1736718646333,-500.0,0.00011095,2]
[348690711,1736718646343,-500.0,0.00011095,2]
[348690712,1736718646352,-500.0,0.00011095,2]
[348690713,1736718646361,-500.0,0.00011095,2]
[348690714,1736718646370,-500.0,0.00011095,2]
[348690716,1736718646379,-500.0,0.00011095,2]
[348690718,1736718646388,-500.0,0.00011095,2]
[348690720,1736718646397,-512.18,0.00011095,2]
[348690722,1736718646406,-500.0,0.00011095,2]
[348690723,1736718646415,-502.14,0.00011095,2]
[348690725,1736718646424,-508.12,0.00011095,2]
[348690726,1736718646433,-500.0,0.00011095,2]
[348690727,1736718646443,-500.0,0.00011095,2]
[348690729,1736718646452,-554.36,0.00011095,2]
[348690731,1736718646461,-500.0,0.00011095,2]
[348690733,1736718646471,-500.0,0.00011095,2]
[348690734,1736718646480,-569.48,0.00011095,2]
[348690735,1736718646489,-500.0,0.00011095,2]
[348690736,1736718646498,-500.0,0.00011095,2]
[348690737,1736718646507,-500.0,0.00011095,2]
[348690738,1736718646516,-500.0,0.00011095,2]
[348690739,1736718646525,-500.0,0.00011095,2]
[348690740,1736718646534,-500.0,0.00011095,2]
[348690741,1736718646543,-500.0,0.00011095,2]
[348690742,1736718646552,-520.25,0.00011095,2]
[348690743,1736718646561,-500.0,0.00011095,2]